[Event "Live Chess"]
[Site "Chess.com"]
[Date "2024.06.01"]
[Round "-"]
[White "jimwad"]
[Black "TigerTank70"]
[Result "0-1"]
[WhiteElo "1241"]
[BlackElo "2197"]
[TimeControl "300"]
[EndTime "10:46:24 PDT"]
[Termination "TigerTank70 won by resignation"]

1. d4 {[%clk 0:04:59.2]} 1... d5 {[%clk 0:04:58.7]} 2. c4 {[%clk 0:04:58.4]}
2... e5 {[%clk 0:04:57.6]} 3. dxe5 {[%clk 0:04:57]} 3... d4 {[%clk 0:04:57.5]}
4. e3 {[%clk 0:04:52.1]} 4... Bb4+ {[%clk 0:04:55.6]} 5. Bd2 {[%clk 0:04:48.9]}
5... dxe3 {[%clk 0:04:55.5]} 6. fxe3 {[%clk 0:04:46.9]} 6... Qh4+ {[%clk
0:04:42.6]} 7. g3 {[%clk 0:04:45]} 7... Qe7 {[%clk 0:04:41.4]} 8. Bxb4 {[%clk
0:04:36.5]} 8... Qxb4+ {[%clk 0:04:39.7]} 9. Qd2 {[%clk 0:04:35.6]} 9... Nc6
{[%clk 0:04:37.6]} 10. a3 {[%clk 0:04:32.7]} 10... Qe7 {[%clk 0:04:34.2]} 11.
Nf3 {[%clk 0:04:28.9]} 11... Bg4 {[%clk 0:04:32]} 12. Bg2 {[%clk 0:04:18.5]}
12... Nxe5 {[%clk 0:04:25.2]} 13. O-O {[%clk 0:04:09.8]} 13... Bxf3 {[%clk
0:04:19.8]} 14. Bxf3 {[%clk 0:04:08.3]} 14... Nxf3+ {[%clk 0:04:17.6]} 15. Rxf3
{[%clk 0:04:05.9]} 15... Nf6 {[%clk 0:04:17.3]} 16. Nc3 {[%clk 0:04:02.7]} 16...
O-O {[%clk 0:04:14.5]} 17. b3 {[%clk 0:03:59.7]} 17... c6 {[%clk 0:04:12.9]} 18.
Rd1 {[%clk 0:03:55.1]} 18... Rad8 {[%clk 0:04:09.4]} 19. Qe2 {[%clk 0:03:53.8]}
19... Rxd1+ {[%clk 0:04:07.5]} 20. Qxd1 {[%clk 0:03:52.6]} 20... Qe5 {[%clk
0:04:06.9]} 21. Ne2 {[%clk 0:03:45.4]} 21... Qb2 {[%clk 0:04:01.2]} 22. a4
{[%clk 0:03:37.4]} 22... h6 {[%clk 0:03:52]} 23. Rf2 {[%clk 0:03:35.9]} 23...
Qe5 {[%clk 0:03:49.3]} 24. Qd4 {[%clk 0:03:24.6]} 24... Re8 {[%clk 0:03:48.2]}
25. Qxe5 {[%clk 0:03:14.5]} 25... Rxe5 {[%clk 0:03:46.6]} 26. Rf3 {[%clk
0:03:08.4]} 26... Ne4 {[%clk 0:03:41.2]} 27. Nf4 {[%clk 0:03:00.1]} 27... Nd2
{[%clk 0:03:38.2]} 28. Rf2 {[%clk 0:02:57]} 28... Nxb3 {[%clk 0:03:37]} 29. Re2
{[%clk 0:02:51]} 29... Nc5 {[%clk 0:03:32.4]} 30. a5 {[%clk 0:02:47.1]} 30...
Ne6 {[%clk 0:03:21.8]} 31. Nxe6 {[%clk 0:02:43.7]} 31... Rxe6 {[%clk 0:03:21.7]}
32. Kf2 {[%clk 0:02:43]} 32... Re4 {[%clk 0:03:16.1]} 33. Kf3 {[%clk 0:02:41.6]}
33... Rxc4 {[%clk 0:03:14.6]} 34. e4 {[%clk 0:02:40.1]} 34... b5 {[%clk
0:03:08.4]} 35. axb6 {[%clk 0:02:38.6]} 35... axb6 {[%clk 0:03:08.3]} 36. Rd2
{[%clk 0:02:33.9]} 36... Kf8 {[%clk 0:03:06.5]} 37. h4 {[%clk 0:02:26.5]} 37...
b5 {[%clk 0:03:05.2]} 38. g4 {[%clk 0:02:25.2]} 38... b4 {[%clk 0:03:04.5]} 39.
Rb2 {[%clk 0:02:21.9]} 39... Ke7 {[%clk 0:03:02.5]} 40. Ke3 {[%clk 0:02:21]}
40... c5 {[%clk 0:02:59.5]} 41. Kd3 {[%clk 0:02:20]} 41... Rd4+ {[%clk
0:02:58.8]} 42. Ke3 {[%clk 0:02:19.1]} 42... Kd6 {[%clk 0:02:57.8]} 43. Rb3
{[%clk 0:02:16.9]} 43... Ke5 {[%clk 0:02:57]} 44. h5 {[%clk 0:02:12.2]} 44...
Rxe4+ {[%clk 0:02:56.2]} 45. Kf3 {[%clk 0:02:09.3]} 45... Rc4 {[%clk 0:02:55.4]}
0-1

[Event "Live Chess"]
[Site "Chess.com"]
[Date "2024.06.01"]
[Round "-"]
[White "Crowded_House"]
[Black "halfberg"]
[Result "1-0"]
[WhiteElo "1767"]
[BlackElo "1895"]
[TimeControl "300"]
[EndTime "10:46:39 PDT"]
[Termination "Crowded_House won on time"]

1. d4 {[%clk 0:04:54.4]} 1... Nf6 {[%clk 0:04:58.6]} 2. Bg5 {[%clk 0:04:52]}
2... Ne4 {[%clk 0:04:57.1]} 3. Bh4 {[%clk 0:04:49.8]} 3... c5 {[%clk 0:04:55.8]}
4. Nd2 {[%clk 0:04:38.7]} 4... Nxd2 {[%clk 0:04:46]} 5. Qxd2 {[%clk 0:04:37.7]}
5... cxd4 {[%clk 0:04:43.8]} 6. Qxd4 {[%clk 0:04:35.4]} 6... Nc6 {[%clk
0:04:42.8]} 7. Qd2 {[%clk 0:04:29.5]} 7... g6 {[%clk 0:04:35.4]} 8. c3 {[%clk
0:04:24.8]} 8... Bg7 {[%clk 0:04:33.7]} 9. e3 {[%clk 0:04:22.3]} 9... O-O {[%clk
0:04:32]} 10. Bd3 {[%clk 0:04:21.2]} 10... d5 {[%clk 0:04:28.2]} 11. Nf3 {[%clk
0:04:19.3]} 11... Qa5 {[%clk 0:04:09.3]} 12. O-O {[%clk 0:04:11.5]} 12... e5
{[%clk 0:04:07.1]} 13. Bc2 {[%clk 0:04:04]} 13... Be6 {[%clk 0:03:59.7]} 14. Ng5
{[%clk 0:03:58.2]} 14... Qc7 {[%clk 0:03:33.6]} 15. Bb3 {[%clk 0:03:51]} 15...
h6 {[%clk 0:03:17.1]} 16. Nf3 {[%clk 0:03:36]} 16... g5 {[%clk 0:03:07.8]} 17.
Bg3 {[%clk 0:03:33.6]} 17... Rad8 {[%clk 0:03:05]} 18. Qc2 {[%clk 0:03:25.2]}
18... Qd7 {[%clk 0:02:47.4]} 19. Rfd1 {[%clk 0:03:23]} 19... Bf5 {[%clk
0:02:25]} 20. Qc1 {[%clk 0:03:18.8]} 20... Qe6 {[%clk 0:02:10]} 21. Bc2 {[%clk
0:03:15.1]} 21... Bxc2 {[%clk 0:02:07.4]} 22. Qxc2 {[%clk 0:03:14.4]} 22... f5
{[%clk 0:01:52.7]} 23. h3 {[%clk 0:03:01.7]} 23... f4 {[%clk 0:01:49.4]} 24.
exf4 {[%clk 0:02:51.7]} 24... exf4 {[%clk 0:01:45.5]} 25. Bh2 {[%clk 0:02:44.2]}
25... d4 {[%clk 0:01:43.7]} 26. cxd4 {[%clk 0:02:41.2]} 26... Nxd4 {[%clk
0:01:42.5]} 27. Nxd4 {[%clk 0:02:40.2]} 27... Bxd4 {[%clk 0:01:33.1]} 28. Re1
{[%clk 0:02:28.8]} 28... Qf6 {[%clk 0:01:30.8]} 29. Rab1 {[%clk 0:02:22.7]}
29... Rfe8 {[%clk 0:01:20.9]} 30. b3 {[%clk 0:02:16.5]} 30... Kg7 {[%clk
0:01:05.9]} 31. Rxe8 {[%clk 0:02:09.6]} 31... Rxe8 {[%clk 0:01:04.4]} 32. Qc4
{[%clk 0:01:59.2]} 32... Qb6 {[%clk 0:00:55.4]} 33. Rf1 {[%clk 0:01:51.2]} 33...
Bxf2+ {[%clk 0:00:43.1]} 34. Kh1 {[%clk 0:01:42.1]} 34... Bd4 {[%clk 0:00:35.6]}
35. Qd5 {[%clk 0:01:31.4]} 35... Re7 {[%clk 0:00:31.8]} 36. Rd1 {[%clk
0:01:26.4]} 36... Bf6 {[%clk 0:00:30.1]} 37. Bg1 {[%clk 0:01:19]} 37... Qc6
{[%clk 0:00:27.8]} 38. Qxc6 {[%clk 0:01:17.6]} 38... bxc6 {[%clk 0:00:27]} 39.
Bc5 {[%clk 0:01:15.4]} 39... Re2 {[%clk 0:00:24.7]} 40. a3 {[%clk 0:01:10.2]}
40... Rb2 {[%clk 0:00:16.9]} 41. b4 {[%clk 0:01:07.7]} 41... Ra2 {[%clk
0:00:15.6]} 42. Rd7+ {[%clk 0:01:05.9]} 42... Kg6 {[%clk 0:00:14.5]} 43. Rxa7
{[%clk 0:01:05.3]} 43... Bb2 {[%clk 0:00:10.4]} 44. Ra6 {[%clk 0:01:03.4]} 44...
Bxa3 {[%clk 0:00:07.7]} 45. Rxc6+ {[%clk 0:01:02]} 45... Kf5 {[%clk 0:00:07.1]}
46. b5 {[%clk 0:01:00.4]} 46... Bxc5 {[%clk 0:00:03.6]} 47. Rxc5+ {[%clk
0:00:59.7]} 47... Ke4 {[%clk 0:00:01.8]} 48. b6 {[%clk 0:00:59]} 48... Rb2
{[%clk 0:00:01]} 49. Rc6 {[%clk 0:00:56.6]} 49... f3 {[%clk 0:00:00.6]} 50.
gxf3+ {[%clk 0:00:55]} 50... Kxf3 {[%clk 0:00:00.5]} 51. Rc3+ {[%clk 0:00:53.2]}
1-0

[Event "Live Chess"]
[Site "Chess.com"]
[Date "2024.06.01"]
[Round "-"]
[White "Rusty_Bridges"]
[Black "SavagePawn7"]
[Result "1-0"]
[WhiteElo "1497"]
[BlackElo "684"]
[TimeControl "300"]
[EndTime "10:46:40 PDT"]
[Termination "Rusty_Bridges won by checkmate"]

1. e4 {[%clk 0:04:55.4]} 1... d5 {[%clk 0:04:57.3]} 2. exd5 {[%clk 0:04:54.1]}
2... Nf6 {[%clk 0:04:55.6]} 3. Nc3 {[%clk 0:04:53.2]} 3... Nxd5 {[%clk
0:04:53.8]} 4. Nxd5 {[%clk 0:04:53.1]} 4... Qxd5 {[%clk 0:04:52.4]} 5. Nf3
{[%clk 0:04:53]} 5... Nc6 {[%clk 0:04:50.5]} 6. d4 {[%clk 0:04:49.8]} 6... Nb4
{[%clk 0:04:48.9]} 7. c3 {[%clk 0:04:46.8]} 7... Qe4+ {[%clk 0:04:46.7]} 8. Be2
{[%clk 0:04:43.3]} 8... Nc2+ {[%clk 0:04:44.5]} 9. Kf1 {[%clk 0:04:38.9]} 9...
Nxa1 {[%clk 0:04:43]} 10. Nd2 {[%clk 0:04:32.9]} 10... Qd5 {[%clk 0:04:36.1]}
11. Bc4 {[%clk 0:04:27.2]} 11... Qa5 {[%clk 0:04:30.6]} 12. Qf3 {[%clk
0:04:23.6]} 12... e6 {[%clk 0:04:22.5]} 13. d5 {[%clk 0:04:16.5]} 13... Nc2
{[%clk 0:04:13.4]} 14. dxe6 {[%clk 0:04:13.2]} 14... Bxe6 {[%clk 0:04:11.7]} 15.
Qxb7 {[%clk 0:04:02]} 15... Rd8 {[%clk 0:04:04.1]} 16. Bxe6 {[%clk 0:03:54.2]}
16... Qe5 {[%clk 0:03:53.5]} 17. Qc6+ {[%clk 0:03:40.4]} 17... Rd7 {[%clk
0:03:29.4]} 18. Qxd7# {[%clk 0:03:36.9]} 1-0

[Event "Live Chess"]
[Site "Chess.com"]
[Date "2024.06.01"]
[Round "-"]
[White "defenderalist"]
[Black "KGreenGator"]
[Result "0-1"]
[WhiteElo "1506"]
[BlackElo "1771"]
[TimeControl "300"]
[EndTime "10:46:42 PDT"]
[Termination "KGreenGator won by resignation"]

1. e4 {[%clk 0:04:57.1]} 1... c5 {[%clk 0:04:57.6]} 2. f4 {[%clk 0:04:51.6]}
2... Nc6 {[%clk 0:04:55.1]} 3. Nf3 {[%clk 0:04:50.8]} 3... e6 {[%clk 0:04:53.4]}
4. Bc4 {[%clk 0:04:45.7]} 4... d5 {[%clk 0:04:51.7]} 5. exd5 {[%clk 0:04:44.8]}
5... exd5 {[%clk 0:04:50.8]} 6. Bb5 {[%clk 0:04:39.8]} 6... Bd7 {[%clk
0:04:48.6]} 7. O-O {[%clk 0:04:34.9]} 7... Nf6 {[%clk 0:04:46.9]} 8. d4 {[%clk
0:04:31.4]} 8... c4 {[%clk 0:04:44.7]} 9. Re1+ {[%clk 0:04:21.5]} 9... Be7
{[%clk 0:04:42.9]} 10. Qe2 {[%clk 0:04:15.3]} 10... a6 {[%clk 0:04:39]} 11. Bxc6
{[%clk 0:04:13.7]} 11... Bxc6 {[%clk 0:04:37]} 12. Ne5 {[%clk 0:04:12.7]} 12...
Rc8 {[%clk 0:04:32.7]} 13. b3 {[%clk 0:04:07.3]} 13... cxb3 {[%clk 0:04:30.6]}
14. axb3 {[%clk 0:04:05.7]} 14... Bb5 {[%clk 0:04:29.2]} 15. c4 {[%clk
0:03:59.7]} 15... dxc4 {[%clk 0:04:27.4]} 16. bxc4 {[%clk 0:03:58.6]} 16...
Qxd4+ {[%clk 0:04:24.6]} 17. Kh1 {[%clk 0:03:30.3]} 17... Qxa1 {[%clk
0:04:21.1]} 18. Ba3 {[%clk 0:03:26.8]} 18... Bxa3 {[%clk 0:04:11.9]} 19. Ng6+
{[%clk 0:03:18.4]} 19... Kd8 {[%clk 0:04:06]} 20. Nxa3 {[%clk 0:03:11.8]} 20...
Qxa3 {[%clk 0:04:00.5]} 21. cxb5 {[%clk 0:03:05.3]} 21... hxg6 {[%clk
0:03:56.9]} 22. Qd2+ {[%clk 0:02:57.6]} 22... Nd7 {[%clk 0:03:51.9]} 23. bxa6
{[%clk 0:02:56.1]} 23... Qg3 {[%clk 0:03:49]} 24. h3 {[%clk 0:02:46]} 24... Qb3
{[%clk 0:03:42.7]} 25. axb7 {[%clk 0:02:44.5]} 25... Qxb7 {[%clk 0:03:40.8]} 26.
Qa5+ {[%clk 0:02:37.3]} 26... Rc7 {[%clk 0:03:34.8]} 27. Qg5+ {[%clk 0:02:31.2]}
27... Nf6 {[%clk 0:03:30.2]} 28. f5 {[%clk 0:02:25.6]} 28... Rxh3+ {[%clk
0:03:27]} 29. Kg1 {[%clk 0:02:23.7]} 29... Qb6+ {[%clk 0:03:22]} 30. Kf1 {[%clk
0:02:18]} 30... Rh1+ {[%clk 0:03:20.5]} 0-1

[Event "Live Chess"]
[Site "Chess.com"]
[Date "2024.06.01"]
[Round "-"]
[White "gmnorfolk"]
[Black "NeilDruggan73"]
[Result "1/2-1/2"]
[WhiteElo "2129"]
[BlackElo "1745"]
[TimeControl "300"]
[EndTime "10:46:54 PDT"]
[Termination "Game drawn by repetition"]

1. c4 {[%clk 0:04:56.7]} 1... Nf6 {[%clk 0:04:57.2]} 2. Nc3 {[%clk 0:04:55.1]}
2... g6 {[%clk 0:04:54.3]} 3. e4 {[%clk 0:04:52.8]} 3... d6 {[%clk 0:04:51.8]}
4. d4 {[%clk 0:04:51.9]} 4... Bg7 {[%clk 0:04:50.7]} 5. Be2 {[%clk 0:04:51.4]}
5... O-O {[%clk 0:04:48.4]} 6. Nf3 {[%clk 0:04:50.9]} 6... Nc6 {[%clk
0:04:45.3]} 7. d5 {[%clk 0:04:48.9]} 7... Nb8 {[%clk 0:04:41.2]} 8. O-O {[%clk
0:04:48.4]} 8... e5 {[%clk 0:04:39]} 9. b4 {[%clk 0:04:39.5]} 9... Nh5 {[%clk
0:04:35.2]} 10. Re1 {[%clk 0:04:37.3]} 10... a5 {[%clk 0:04:31]} 11. bxa5 {[%clk
0:04:28]} 11... Rxa5 {[%clk 0:04:27.5]} 12. a4 {[%clk 0:04:27.9]} 12... f5
{[%clk 0:04:25.5]} 13. Ng5 {[%clk 0:04:17.8]} 13... Nf4 {[%clk 0:04:16.7]} 14.
Bf1 {[%clk 0:04:16.1]} 14... Qxg5 {[%clk 0:04:11.2]} 15. g3 {[%clk 0:04:12.2]}
15... Na6 {[%clk 0:03:21.2]} 16. h4 {[%clk 0:04:08.7]} 16... Qh6 {[%clk
0:03:08.4]} 17. gxf4 {[%clk 0:03:53.8]} 17... exf4 {[%clk 0:03:02.1]} 18. Bd2
{[%clk 0:03:52.7]} 18... Qxh4 {[%clk 0:02:58.7]} 19. Qf3 {[%clk 0:03:46.3]}
19... fxe4 {[%clk 0:02:49.9]} 20. Nxe4 {[%clk 0:03:42]} 20... Bxa1 {[%clk
0:02:34.8]} 21. Rxa1 {[%clk 0:03:40.5]} 21... Rc5 {[%clk 0:02:28]} 22. Nxc5
{[%clk 0:03:34.7]} 22... Nxc5 {[%clk 0:02:26]} 23. Bc3 {[%clk 0:03:32.7]} 23...
Bf5 {[%clk 0:02:19.4]} 24. Re1 {[%clk 0:03:21.7]} 24... Bg4 {[%clk 0:02:08.8]}
25. Qg2 {[%clk 0:03:12.1]} 25... f3 {[%clk 0:01:35.8]} 26. Qh2 {[%clk
0:03:09.1]} 26... Qg5 {[%clk 0:01:23.8]} 27. Qg3 {[%clk 0:03:06.6]} 27... Nxa4
{[%clk 0:01:13.6]} 28. Bd4 {[%clk 0:03:00.1]} 28... Nc5 {[%clk 0:01:09.8]} 29.
Bh3 {[%clk 0:02:46.5]} 29... h5 {[%clk 0:01:08]} 30. Bxg4 {[%clk 0:02:40.2]}
30... Qxg4 {[%clk 0:01:06.4]} 31. Qxg4 {[%clk 0:02:38.3]} 31... hxg4 {[%clk
0:01:06]} 32. Re7 {[%clk 0:02:37.2]} 32... Rf7 {[%clk 0:01:01.2]} 33. Re8+
{[%clk 0:02:24.9]} 33... Rf8 {[%clk 0:00:58.1]} 34. Re7 {[%clk 0:02:21.2]} 34...
Rf7 {[%clk 0:00:56.9]} 35. Re8+ {[%clk 0:02:20.1]} 35... Rf8 {[%clk 0:00:53.2]}
36. Re7 {[%clk 0:02:19.3]} 1/2-1/2

[Event "Live Chess"]
[Site "Chess.com"]
[Date "2024.06.01"]
[Round "-"]
[White "rakibsachchu"]
[Black "sshamil"]
[Result "0-1"]
[WhiteElo "1550"]
[BlackElo "1678"]
[TimeControl "300"]
[EndTime "10:47:03 PDT"]
[Termination "sshamil won on time"]

1. e4 {[%clk 0:04:58.5]} 1... Nc6 {[%clk 0:04:58.2]} 2. d4 {[%clk 0:04:53.4]}
2... d5 {[%clk 0:04:56]} 3. e5 {[%clk 0:04:51.5]} 3... Bf5 {[%clk 0:04:54.2]} 4.
g4 {[%clk 0:04:49.8]} 4... Bd7 {[%clk 0:04:52.1]} 5. Bg2 {[%clk 0:04:44.6]} 5...
e6 {[%clk 0:04:49.7]} 6. f4 {[%clk 0:04:41.8]} 6... Be7 {[%clk 0:04:45.2]} 7.
Nf3 {[%clk 0:04:39.1]} 7... f6 {[%clk 0:04:44.2]} 8. O-O {[%clk 0:04:35.6]} 8...
Nh6 {[%clk 0:04:40.4]} 9. g5 {[%clk 0:04:29.3]} 9... fxg5 {[%clk 0:04:38.7]} 10.
fxg5 {[%clk 0:04:27.9]} 10... Nf5 {[%clk 0:04:36.7]} 11. Bf4 {[%clk 0:04:15]}
11... O-O {[%clk 0:04:34.9]} 12. Qd2 {[%clk 0:03:54]} 12... a6 {[%clk
0:04:30.6]} 13. h4 {[%clk 0:03:51]} 13... Na7 {[%clk 0:04:19.5]} 14. Bh3 {[%clk
0:03:46.5]} 14... c5 {[%clk 0:04:17.2]} 15. c3 {[%clk 0:03:39.8]} 15... cxd4
{[%clk 0:04:13.5]} 16. cxd4 {[%clk 0:03:37.8]} 16... Qb6 {[%clk 0:04:12.3]} 17.
Nc3 {[%clk 0:03:25.1]} 17... Nb5 {[%clk 0:04:10.8]} 18. Nxb5 {[%clk 0:03:05.8]}
18... Bxb5 {[%clk 0:04:02.1]} 19. Rfc1 {[%clk 0:03:04.1]} 19... Rac8 {[%clk
0:03:53.9]} 20. Rc3 {[%clk 0:02:44.9]} 20... g6 {[%clk 0:03:49.1]} 21. h5 {[%clk
0:02:37.3]} 21... Rxc3 {[%clk 0:03:42.5]} 22. bxc3 {[%clk 0:02:33.8]} 22... Qc7
{[%clk 0:03:17.1]} 23. hxg6 {[%clk 0:02:24.4]} 23... hxg6 {[%clk 0:03:15.8]} 24.
Nh2 {[%clk 0:02:19.9]} 24... Kg7 {[%clk 0:03:12.5]} 25. Bxf5 {[%clk 0:02:15]}
25... gxf5 {[%clk 0:03:07.7]} 26. Kg2 {[%clk 0:02:07.3]} 26... Rh8 {[%clk
0:03:05.7]} 27. Qe3 {[%clk 0:01:37.8]} 27... Qc4 {[%clk 0:02:59.4]} 28. a4
{[%clk 0:01:22.8]} 28... Qe2+ {[%clk 0:02:54.1]} 29. Qxe2 {[%clk 0:01:18.2]}
29... Bxe2 {[%clk 0:02:52.7]} 30. Rb1 {[%clk 0:01:16]} 30... b5 {[%clk
0:02:47.9]} 31. axb5 {[%clk 0:01:11.7]} 31... Bxb5 {[%clk 0:02:06.8]} 32. Nf3
{[%clk 0:01:03.8]} 32... Kg6 {[%clk 0:02:02.4]} 33. Kg3 {[%clk 0:00:59.4]} 33...
Rh5 {[%clk 0:01:52.2]} 34. Rg1 {[%clk 0:00:55.3]} 34... Bc4 {[%clk 0:01:41.1]}
35. Nh4+ {[%clk 0:00:50.8]} 35... Kg7 {[%clk 0:01:37]} 36. Nf3 {[%clk
0:00:36.8]} 36... a5 {[%clk 0:01:25.3]} 37. Rg2 {[%clk 0:00:35.3]} 37... a4
{[%clk 0:01:23]} 38. Bc1 {[%clk 0:00:30.5]} 38... a3 {[%clk 0:01:18.2]} 39. Bd2
{[%clk 0:00:05.3]} 39... a2 {[%clk 0:01:16.6]} 40. Rg1 {[%clk 0:00:00.9]} 40...
Bd3 {[%clk 0:01:07.1]} 0-1

[Event "Live Chess"]
[Site "Chess.com"]
[Date "2024.06.01"]
[Round "-"]
[White "TedUdale"]
[Black "Sokolik_UA"]
[Result "1-0"]
[WhiteElo "2147"]
[BlackElo "797"]
[TimeControl "300"]
[EndTime "10:47:06 PDT"]
[Termination "TedUdale won by checkmate"]

1. e4 {[%clk 0:04:54.6]} 1... e6 {[%clk 0:04:59.3]} 2. Nc3 {[%clk 0:04:53.5]}
2... d5 {[%clk 0:04:58.8]} 3. exd5 {[%clk 0:04:52.8]} 3... exd5 {[%clk
0:04:58.2]} 4. d4 {[%clk 0:04:51.1]} 4... Nf6 {[%clk 0:04:57.5]} 5. Nf3 {[%clk
0:04:50.3]} 5... Bb4 {[%clk 0:04:55.6]} 6. Bg5 {[%clk 0:04:49.8]} 6... Bf5
{[%clk 0:04:49.5]} 7. Bxf6 {[%clk 0:04:48.7]} 7... Qxf6 {[%clk 0:04:47.9]} 8.
Bd3 {[%clk 0:04:47]} 8... Nd7 {[%clk 0:04:42.1]} 9. O-O {[%clk 0:04:45.9]} 9...
O-O {[%clk 0:04:37.8]} 10. Nxd5 {[%clk 0:04:41.4]} 10... Qd6 {[%clk 0:04:07.1]}
11. Nxb4 {[%clk 0:04:33.9]} 11... Qxb4 {[%clk 0:03:56.7]} 12. Bxf5 {[%clk
0:04:33]} 12... Nf6 {[%clk 0:03:53.3]} 13. c3 {[%clk 0:04:31.6]} 13... Qd6
{[%clk 0:03:49.4]} 14. Re1 {[%clk 0:04:29.4]} 14... Qf4 {[%clk 0:03:46.8]} 15.
Qd3 {[%clk 0:04:27.9]} 15... h6 {[%clk 0:03:40.9]} 16. Re7 {[%clk 0:04:19.9]}
16... Rfe8 {[%clk 0:03:23.2]} 17. Rae1 {[%clk 0:04:18.2]} 17... Rxe7 {[%clk
0:03:21.3]} 18. Rxe7 {[%clk 0:04:16.3]} 18... Re8 {[%clk 0:03:19.8]} 19. Rxe8+
{[%clk 0:04:14.8]} 19... Nxe8 {[%clk 0:03:18.8]} 20. g3 {[%clk 0:04:13.3]} 20...
Qc1+ {[%clk 0:03:15.8]} 21. Kg2 {[%clk 0:04:12.4]} 21... Qxb2 {[%clk 0:03:09.1]}
22. Qe3 {[%clk 0:04:08.3]} 22... Kf8 {[%clk 0:03:05.8]} 23. d5 {[%clk
0:03:56.4]} 23... Qxa2 {[%clk 0:03:03.5]} 24. Qc5+ {[%clk 0:03:54.8]} 24... Nd6
{[%clk 0:03:00.3]} 25. Qxc7 {[%clk 0:03:53.9]} 25... Qxd5 {[%clk 0:02:57.5]} 26.
Qd8+ {[%clk 0:03:49.1]} 26... Ne8 {[%clk 0:02:55.6]} 27. Qxd5 {[%clk 0:03:49]}
27... Nf6 {[%clk 0:02:53.5]} 28. Qd8+ {[%clk 0:03:47.4]} 28... Ne8 {[%clk
0:02:52.7]} 29. Bd7 {[%clk 0:03:47.3]} 29... Kg8 {[%clk 0:02:50.8]} 30. Qxe8+
{[%clk 0:03:45.5]} 30... Kh7 {[%clk 0:02:50.5]} 31. Bf5+ {[%clk 0:03:44.8]}
31... g6 {[%clk 0:02:49.4]} 32. Qxf7+ {[%clk 0:03:44.3]} 32... Kh8 {[%clk
0:02:48.5]} 33. Bxg6 {[%clk 0:03:44]} 33... b5 {[%clk 0:02:46]} 34. Qh7# {[%clk
0:03:43.9]} 1-0

[Event "Live Chess"]
[Site "Chess.com"]
[Date "2024.06.01"]
[Round "-"]
[White "Stanbad1"]
[Black "Richardallis"]
[Result "1-0"]
[WhiteElo "2678"]
[BlackElo "1974"]
[TimeControl "300"]
[EndTime "10:47:07 PDT"]
[Termination "Stanbad1 won by resignation"]

1. d4 {[%clk 0:04:57.4]} 1... c5 {[%clk 0:04:56.1]} 2. d5 {[%clk 0:04:56.4]}
2... d6 {[%clk 0:04:55.3]} 3. Nc3 {[%clk 0:04:54.9]} 3... e5 {[%clk 0:04:53.8]}
4. e4 {[%clk 0:04:53.9]} 4... a6 {[%clk 0:04:51]} 5. a4 {[%clk 0:04:52.5]} 5...
Nf6 {[%clk 0:04:48.9]} 6. f4 {[%clk 0:04:50.2]} 6... Nbd7 {[%clk 0:04:42.4]} 7.
Nf3 {[%clk 0:04:48]} 7... Be7 {[%clk 0:04:38.3]} 8. fxe5 {[%clk 0:04:46.4]} 8...
Nxe5 {[%clk 0:04:37.8]} 9. Nxe5 {[%clk 0:04:44.8]} 9... dxe5 {[%clk 0:04:36.1]}
10. Be2 {[%clk 0:04:44.5]} 10... O-O {[%clk 0:04:31.5]} 11. O-O {[%clk
0:04:43.4]} 11... Bd6 {[%clk 0:04:30.5]} 12. Be3 {[%clk 0:04:42.1]} 12... h6
{[%clk 0:04:27.7]} 13. Qe1 {[%clk 0:04:40.8]} 13... Nh7 {[%clk 0:04:26.5]} 14.
Qf2 {[%clk 0:04:39.4]} 14... f5 {[%clk 0:04:23.1]} 15. Bxc5 {[%clk 0:04:34.4]}
15... fxe4 {[%clk 0:04:14.7]} 16. Qe3 {[%clk 0:04:32.8]} 16... Nf6 {[%clk
0:04:02.8]} 17. Rad1 {[%clk 0:04:22]} 17... Qc7 {[%clk 0:03:40]} 18. Bxd6 {[%clk
0:04:20.3]} 18... Qxd6 {[%clk 0:03:39.1]} 19. Nxe4 {[%clk 0:04:19.9]} 19... Nxe4
{[%clk 0:03:37.8]} 20. Qxe4 {[%clk 0:04:19.8]} 20... Bd7 {[%clk 0:03:34.7]} 21.
Bf3 {[%clk 0:04:16.8]} 21... Rf4 {[%clk 0:03:31.7]} 22. Qe3 {[%clk 0:04:13.4]}
22... Raf8 {[%clk 0:03:25.4]} 23. Rfe1 {[%clk 0:04:11.1]} 23... e4 {[%clk
0:03:09.9]} 24. Bxe4 {[%clk 0:04:07.3]} 24... Re8 {[%clk 0:03:08.8]} 25. Qd3
{[%clk 0:04:03.1]} 25... Kh8 {[%clk 0:02:44.9]} 26. Bf3 {[%clk 0:04:00.6]} 26...
Ref8 {[%clk 0:02:35.2]} 27. Qe3 {[%clk 0:03:56.2]} 27... Bg4 {[%clk 0:02:25.2]}
28. Bxg4 {[%clk 0:03:54]} 28... Rxg4 {[%clk 0:02:24]} 29. Qe6 {[%clk 0:03:53.4]}
29... Qc5+ {[%clk 0:01:58.9]} 30. Kh1 {[%clk 0:03:51.9]} 30... Qxc2 {[%clk
0:01:56.6]} 31. Qxg4 {[%clk 0:03:50.3]} 1-0